bitfinex/quotes_SOLUSD_20240729
["timestamp","ask_amount","ask_price","bid_price","bid_amount"]
[1722240903454,4.1493,192.8,192.72,22.231]
[1722240903675,49.1496,192.79,192.72,22.231]
[1722240903960,49.1498,192.78,192.72,22.231]
[1722240904262,4.1502,192.76,192.72,22.231]
[1722240904434,4.1501,192.77,192.72,22.231]
[1722240904632,45.0,192.76,192.72,22.231]
[1722240905439,49.1503,192.76,192.72,22.231]
[1722240905635,45.0,192.76,192.72,22.231]
[1722240906559,45.0,192.77,192.72,22.231]
[1722240906932,49.15,192.77,192.72,22.231]
[1722240907440,45.0,192.77,192.72,22.231]
[1722240909559,25.88,192.79,192.72,22.231]
[1722240909859,25.88,192.82,192.72,22.231]
[1722240910059,4.1494,192.8,192.72,22.231]
[1722240910271,4.1496,192.79,192.72,22.231]
[1722240911563,4.1498,192.78,192.72,22.231]
[1722240911856,20.0,192.81,192.72,22.231]
[1722240911857,49.15,192.77,192.72,22.231]
[1722240914044,25.88,192.79,192.72,22.231]
[1722240914432,30.0296,192.79,192.72,22.231]
[1722240915249,12.96,192.74,192.72,22.231]
[1722240916055,51.84,192.8,192.72,22.231]
[1722240916056,12.96,192.73,192.72,22.231]
[1722240916858,20.0,192.81,192.72,22.231]
[1722240917053,12.96,192.76,192.72,22.231]
[1722240917951,12.96,192.75,192.72,22.231]
[1722240918653,12.96,192.74,192.72,22.231]
[1722240919048,12.96,192.73,192.72,22.231]
[1722240923485,96.84,192.8,192.72,22.231]
[1722240923486,12.96,192.74,192.72,22.231]
[1722240923988,12.96,192.73,192.72,22.231]
[1722240925453,4.1498,192.78,192.72,22.231]
[1722240925654,12.96,192.74,192.72,22.231]
[1722240926163,12.96,192.75,192.72,22.231]
[1722240929179,12.96,192.74,192.72,22.231]
[1722240930664,12.96,192.75,192.72,22.231]
[1722240932484,4.1495,192.8,192.72,22.231]
[1722240932691,12.96,192.77,192.72,22.231]
[1722240932859,12.96,192.78,192.73,20.0]
[1722240935463,12.96,192.77,192.73,20.0]
[1722240935777,12.96,192.76,192.73,20.0]
[1722240936571,4.1495,192.8,192.73,20.0]
[1722240936771,12.96,192.76,192.72,22.231]
[1722240937167,4.1496,192.79,192.73,20.0]
[1722240937374,12.96,192.76,192.73,20.0]
[1722240937685,12.96,192.77,192.73,20.0]
[1722240938183,4.1496,192.79,192.73,20.0]
[1722240938365,12.96,192.77,192.73,20.0]
[1722240938967,4.1496,192.79,192.73,20.0]
[1722240939173,12.96,192.77,192.73,20.0]
[1722240939371,12.96,192.76,192.73,20.0]
[1722240939684,17.1106,192.74,192.72,15.9211]
[1722240939888,12.96,192.73,192.72,15.9211]
[1722240940266,12.96,192.73,192.67,21.5488]
[1722240940486,12.96,192.71,192.67,21.5488]
[1722240943766,4.1528,192.64,192.58,22.1982]
[1722240944081,12.96,192.6,192.58,22.1982]
[1722240944277,12.96,192.59,192.58,22.1982]
[1722240944970,12.96,192.59,192.52,12.96]
[1722240944971,12.96,192.59,192.52,22.5548]
[1722240945170,4.1533,192.62,192.52,22.5548]
[1722240945171,12.96,192.58,192.52,22.5548]
[1722240945373,12.96,192.57,192.56,4.1544]
[1722240946769,28.8593,192.67,192.53,20.0]
[1722240946770,12.96,192.58,192.57,4.1541]
[1722240947566,13.2393,192.67,192.54,12.96]
[1722240947790,12.96,192.61,192.55,21.03850176]
[1722240948176,12.96,192.61,192.59,4.1536]
[1722240949898,12.96,192.61,192.58,4.1541]
[1722240950082,12.96,192.6,192.58,4.1541]
[1722240950392,12.96,192.6,192.54,20.0]
[1722240950590,12.96,192.6,192.53,32.96]
[1722240950776,12.96,192.59,192.53,20.0]
[1722240951183,12.96,192.59,192.57,4.1543]
[1722240951386,12.96,192.59,192.53,20.0]
[1722240952385,12.96,192.59,192.54,1.0385899]
[1722240952881,4.153,192.63,192.54,1.0385899]
[1722240952882,12.96,192.6,192.54,1.0385899]
[1722240953081,12.96,192.6,192.58,4.1541]
[1722240953471,45.0,192.66,192.59,4.1538]
[1722240953677,12.96,192.62,192.59,4.1538]
[1722240953887,12.96,192.6,192.55,20.0]
[1722240954079,12.96,192.58,192.53,20.0]
[1722240954286,12.96,192.58,192.55,4.1545]
[1722240955777,12.96,192.57,192.55,4.1545]
[1722240956880,12.96,192.57,192.56,4.1545]
[1722240961302,12.96,192.57,192.55,4.1547]
[1722240961501,12.96,192.58,192.53,20.0]
[1722240961683,12.96,192.58,192.56,4.1545]
[1722240963604,12.96,192.59,192.56,4.1545]
[1722240963810,12.96,192.58,192.56,4.1545]
[1722240964488,12.96,192.57,192.56,4.1545]
[1722240965105,12.96,192.57,192.55,4.1547]
[1722240965708,4.1537,192.6,192.55,4.1547]
[1722240966008,12.96,192.58,192.55,4.1547]
[1722240966916,12.96,192.57,192.54,4.1549]
[1722240967591,12.96,192.57,192.52,26.71]
[1722240967790,12.96,192.55,192.52,22.5548]
[1722240968425,12.96,192.54,192.53,4.1551]
[1722240968913,12.96,192.56,192.53,4.1551]
[1722240970612,12.96,192.56,192.52,16.1344]
[1722240970613,12.96,192.56,192.54,4.1549]
[1722240970993,12.96,192.57,192.54,4.1549]
[1722240972723,12.96,192.57,192.55,4.1547]
[1722240973313,12.96,192.57,192.52,16.1344]
[1722240973630,12.96,192.54,192.52,16.1344]
[1722240973827,12.96,192.54,192.51,4.1554]
[1722240974628,12.96,192.53,192.49,24.1558]
[1722240974916,12.96,192.53,192.5,4.1558]
[1722240975401,12.96,192.54,192.51,4.1556]
[1722240976027,4.1539,192.59,192.53,4.1551]
[1722240976226,12.96,192.55,192.53,4.1551]
[1722240976531,12.96,192.55,192.52,4.1553]
[1722240978096,20.0,192.61,192.5,12.96]
[1722240978317,12.96,192.57,192.53,4.1549]
[1722240979311,12.96,192.57,192.54,4.1549]
[1722240980860,12.96,192.57,192.52,4.1552]
[1722240981502,12.96,192.57,192.53,4.1551]
[1722240981708,12.96,192.56,192.53,4.1551]
[1722240982727,12.96,192.56,192.54,4.1549]
[1722240983321,12.96,192.56,192.53,4.1551]
[1722240984315,4.1539,192.59,192.53,4.1551]
[1722240984533,12.96,192.56,192.53,4.1551]
[1722240984917,12.96,192.57,192.5,32.96]
[1722240985126,12.96,192.57,192.55,4.1547]
[1722240986332,12.96,192.57,192.5,32.96]
[1722240986713,12.96,192.56,192.53,4.1551]
[1722240986913,12.96,192.56,192.51,4.1555]
[1722240987919,12.96,192.55,192.51,24.1555]
[1722240988757,4.1545,192.56,192.51,24.1555]
[1722240989051,4.1543,192.57,192.51,24.1555]
[1722240990628,4.1543,192.57,192.51,4.1555]
[1722240994341,51.84,192.6,192.5,2.0114366]
[1722240994342,4.1541,192.58,192.52,4.1552]
[1722240994648,45.0,192.57,192.52,4.1552]
[1722240994941,13.2393,192.64,192.52,12.96]
[1722240995244,12.96,192.61,192.55,28.2165]
[1722240995428,25.9999,192.68,192.58,4.154]
[1722240995741,12.96,192.62,192.57,4.1543]
[1722240995929,12.96,192.61,192.57,4.1543]
[1722240996129,12.96,192.61,192.58,4.154]
[1722240996449,15.62,192.7,192.59,12.96]
[1722240996662,12.96,192.69,192.62,12.96]
[1722240996955,12.96,192.69,192.62,19.3351]
[1722240997121,12.96,192.69,192.63,15.9461]
[1722240997522,12.96,192.71,192.63,28.9061]
[1722240998034,12.96,192.71,192.64,12.96]
[1722240998230,4.1505,192.75,192.67,12.96]
[1722240998435,12.96,192.75,192.67,12.96]
[1722240998632,12.96,192.75,192.68,32.96]
[1722241000145,17.1105,192.75,192.68,32.96]
[1722241000452,17.1105,192.75,192.68,20.0]
[1722241000831,12.96,192.75,192.68,20.0]
[1722241002259,12.96,192.73,192.68,20.0]
[1722241002432,12.96,192.73,192.65,12.96]
[1722241002634,12.96,192.73,192.66,20.0]
[1722241002829,12.96,192.72,192.66,20.0]
[1722241003750,12.96,192.71,192.66,20.0]
[1722241004047,12.96,192.71,192.65,20.0]
[1722241004553,12.96,192.68,192.63,15.9461]
[1722241004734,12.96,192.67,192.63,15.9461]
[1722241005139,10.3747,192.78,192.63,15.9461]
[1722241005445,12.96,192.7,192.63,29.94419526]
[1722241005840,12.96,192.7,192.64,20.0]
[1722241006432,12.96,192.71,192.64,32.96]
[1722241006635,12.96,192.71,192.64,33.9980639]
[1722241006836,12.96,192.71,192.64,32.96]
[1722241007237,12.96,192.71,192.64,20.0]
[1722241007437,12.96,192.7,192.64,20.0]
[1722241007751,12.96,192.69,192.64,20.0]
[1722241008758,12.96,192.68,192.64,20.0]
[1722241010140,12.96,192.69,192.64,20.0]
[1722241010357,65.34,192.77,192.66,12.96]
[1722241010358,20.0,192.77,192.66,12.96]
[1722241010559,12.96,192.74,192.67,12.96]
[1722241011671,12.96,192.74,192.66,12.96]
[1722241011971,12.96,192.72,192.65,12.96]
[1722241012293,12.96,192.72,192.66,20.0]
[1722241012436,4.15,192.77,192.66,32.96]
[1722241012639,15.62,192.79,192.67,12.96]
[1722241012962,12.96,192.74,192.68,20.0]
[1722241013468,12.96,192.74,192.68,21.0378185]
[1722241013639,34.29295053,192.83,192.69,34.5287]
[1722241013834,12.96,192.77,192.7,32.96]
[1722241014849,12.96,192.76,192.7,20.0]
[1722241015967,28.8593,192.83,192.7,32.96]
[1722241016185,4.1493,192.8,192.71,12.96]
[1722241016381,12.96,192.78,192.7,20.0]
[1722241016563,12.96,192.75,192.7,20.0]
[1722241016763,12.96,192.73,192.7,20.0]
[1722241016977,12.96,192.73,192.69,21.5687]
[1722241017164,12.96,192.71,192.69,21.5687]
[1722241017686,12.96,192.7,192.64,21.9861]
[1722241018392,12.96,192.71,192.64,21.9861]
[1722241018773,12.96,192.69,192.64,21.9861]
[1722241019087,12.96,192.66,192.64,21.9861]
[1722241019392,4.1515,192.7,192.64,21.9861]
[1722241019592,45.0,192.69,192.64,21.9861]
[1722241019969,25.94,192.72,192.64,21.9861]
[1722241020169,45.0,192.71,192.64,21.9861]
[1722241020384,45.0,192.72,192.64,21.9861]
[1722241020885,45.0,192.73,192.64,21.9861]
[1722241021893,4.1512,192.72,192.64,21.9861]
[1722241022186,4.1513,192.71,192.64,21.9861]
[1722241022785,49.151,192.73,192.64,21.9861]
[1722241022989,45.0,192.73,192.64,21.9861]
[1722241023188,25.94,192.75,192.65,20.0]
[1722241023486,45.0,192.74,192.65,20.0]
[1722241024079,45.0,192.75,192.65,20.0]
[1722241025483,25.94,192.78,192.66,0.17]
[1722241025701,4.1502,192.77,192.66,0.17]
[1722241026079,25.94,192.81,192.66,0.17]
[1722241026080,4.1495,192.79,192.66,0.17]
[1722241026388,25.94,192.81,192.68,16.4446]
[1722241026389,4.1494,192.8,192.68,16.4446]
[1722241026580,4.1494,192.8,192.69,26.4269]
[1722241027610,4.1496,192.79,192.69,26.4269]
[1722241027911,4.1498,192.78,192.69,26.4269]
[1722241029080,15.62,192.8,192.69,26.4269]
[1722241029293,4.1504,192.75,192.69,26.4269]
[1722241030597,4.1502,192.76,192.69,26.4269]
[1722241030773,45.0,192.75,192.69,26.4269]
[1722241030978,4.1498,192.78,192.69,26.4269]
[1722241031599,4.1496,192.79,192.69,26.4269]
[1722241031905,45.0,192.78,192.69,26.4269]
[1722241032094,30.0892,192.81,192.69,26.4269]
[1722241032414,25.94,192.81,192.69,26.4269]
[1722241033290,4.1495,192.8,192.69,26.4269]
[1722241033793,45.0,192.79,192.69,26.4269]
[1722241034519,49.1496,192.79,192.69,26.4269]
[1722241035324,45.0,192.79,192.69,26.4269]
[1722241035514,45.0,192.8,192.69,26.4269]
[1722241035806,45.0,192.8,192.69,27.46456014]
[1722241036193,45.0,192.8,192.7,15.397]
[1722241036430,4.1489,192.82,192.71,21.03757369]
[1722241036431,45.0,192.81,192.71,21.03757369]
[1722241037192,4.1489,192.82,192.71,21.03757369]
[1722241039290,45.0,192.81,192.71,20.0]
[1722241039499,4.1502,192.76,192.7,15.397]
[1722241039691,25.94,192.78,192.7,15.397]
[1722241039692,4.1504,192.75,192.7,15.397]
[1722241039918,41.56,192.78,192.7,15.397]
[1722241039919,49.1507,192.74,192.7,15.397]
[1722241041218,45.0,192.74,192.7,15.397]
[1722241041424,45.0,192.75,192.7,15.397]
[1722241041605,49.1505,192.75,192.7,15.397]
[1722241042412,30.0893,192.81,192.7,15.397]
[1722241042614,10.3718,192.84,192.7,15.397]
[1722241042615,4.1488,192.83,192.7,15.397]
[1722241042926,4.1488,192.83,192.71,20.0]
[1722241042927,24.1488,192.83,192.71,20.0]
[1722241043105,4.1488,192.83,192.71,20.0]
[1722241044830,45.0,192.82,192.71,20.0]
[1722241045422,45.0,192.82,192.71,21.03753409]
[1722241045602,45.0,192.82,192.71,20.0]
[1722241047022,4.1493,192.8,192.71,20.0]
[1722241047223,45.0,192.79,192.71,20.0]
[1722241048306,45.0,192.8,192.71,20.0]
[1722241049809,4.1496,192.79,192.71,20.0]
[1722241050305,45.0,192.8,192.71,20.0]
[1722241050533,4.1498,192.78,192.71,20.0]
[1722241050826,45.0,192.77,192.71,20.0]
[1722241051232,4.1492,192.81,192.71,20.0]
[1722241051415,25.94,192.82,192.71,20.0]
[1722241051416,45.0,192.8,192.71,20.0]
[1722241051614,30.0889,192.82,192.71,20.0]
[1722241051615,45.0,192.81,192.71,20.0]
[1722241052615,49.1492,192.81,192.71,20.0]
[1722241053528,4.1493,192.8,192.71,20.0]
[1722241053729,45.0,192.79,192.71,20.0]
[1722241054031,4.1519,192.69,192.66,16.2132]
[1722241054230,15.62,192.75,192.66,16.2132]
[1722241054231,4.1519,192.68,192.66,16.2132]
[1722241054429,41.56,192.72,192.66,16.2132]
[1722241054430,4.1517,192.69,192.66,16.2132]
[1722241054638,41.56,192.72,192.66,16.2132]
[1722241054639,4.1515,192.7,192.66,16.2132]
[1722241054937,4.1513,192.71,192.66,16.2132]
[1722241055128,25.94,192.72,192.66,16.2132]
[1722241055329,20.0,192.74,192.66,16.2132]
[1722241055532,4.1511,192.72,192.66,16.2132]
[1722241056420,35.62,192.74,192.66,16.2132]
[1722241056637,4.1521,192.67,192.66,16.2132]
[1722241056857,41.56,192.72,192.66,16.2132]
[1722241057144,4.1519,192.68,192.55,1.03817411]
[1722241057325,45.0,192.67,192.61,16.4375]
[1722241057520,4.1524,192.66,192.61,16.4375]
[1722241057714,49.1521,192.67,192.61,16.4375]
[1722241058233,41.56,192.63,192.53,6.1673]
[1722241058436,4.1537,192.6,192.53,6.1673]
[1722241058729,4.1535,192.61,192.54,4.1549]
[1722241058934,49.1536,192.6,192.54,4.1549]
[1722241059135,4.1536,192.6,192.54,4.1549]
[1722241059326,45.0,192.59,192.54,4.1549]
[1722241059711,45.0,192.59,192.53,6.1673]
[1722241059917,4.1542,192.58,192.53,6.1673]
[1722241060124,4.1544,192.57,192.53,6.1673]
[1722241060324,45.0,192.59,192.53,6.1673]
[1722241060529,4.1543,192.57,192.53,6.1673]
[1722241060946,45.0,192.59,192.53,6.1673]
[1722241061114,4.1549,192.54,192.53,6.1673]
[1722241061320,45.0,192.59,192.53,6.1673]
[1722241061727,4.1549,192.54,192.53,6.1673]
[1722241062339,4.1551,192.53,192.52,16.4842]
[1722241063844,20.0,192.58,192.52,16.4842]
[1722241064016,45.0,192.57,192.52,16.4842]
[1722241064944,4.1551,192.54,192.52,16.4842]
[1722241066242,4.1551,192.53,192.52,16.4842]
[1722241066625,4.1551,192.53,192.52,16.2945079]
[1722241067116,4.1549,192.54,192.52,16.2945079]
[1722241067723,4.1551,192.53,192.52,16.2945079]
[1722241068326,45.0,192.53,192.49,6.1822]
[1722241068540,4.1558,192.5,192.49,6.1822]
[1722241069341,253.9,192.69,192.49,32.1222]
[1722241069545,25.94,192.67,192.49,32.1222]
[1722241069750,25.94,192.67,192.5,15.4672]
[1722241069933,25.94,192.64,192.5,15.4672]
[1722241070244,4.155,192.54,192.5,15.4672]
[1722241070624,4.1552,192.53,192.5,15.4672]
[1722241071026,10.3865,192.56,192.5,15.4672]
[1722241071249,4.1553,192.53,192.5,15.4672]
[1722241071833,4.1554,192.52,192.5,15.4672]
[1722241072652,4.1556,192.51,192.5,15.4672]
[1722241072851,45.0,192.55,192.5,15.4672]
[1722241073051,4.1556,192.51,192.5,15.4672]
[1722241073656,3.6556,192.51,192.5,15.4672]
[1722241073843,4.1561,192.49,192.45,15.4766]
[1722241074025,41.56,192.55,192.45,15.4766]
[1722241074026,4.1562,192.48,192.45,15.4766]
[1722241075454,4.1565,192.47,192.44,6.1673]
[1722241075647,26.0093,192.51,192.41,15.4766]
[1722241075949,0.17,192.5,192.41,15.4766]
[1722241076158,4.1567,192.46,192.41,15.4766]
[1722241076439,4.1567,192.46,192.41,19.6343]
[1722241076637,4.156,192.49,192.43,4.1572]
[1722241077249,20.0,192.54,192.41,19.6341]
[1722241077567,10.3851,192.59,192.42,1.03925241]
[1722241077775,4.156,192.5,192.44,4.1569]
[1722241078272,4.1561,192.49,192.43,24.1573]
[1722241078435,4.1561,192.49,192.43,4.1573]
[1722241079762,4.1558,192.5,192.44,4.1571]
[1722241079934,4.1558,192.5,192.45,4.1568]
[1722241080355,4.1554,192.52,192.46,4.1566]
[1722241080549,20.0,192.55,192.45,4.1569]
[1722241080550,4.1556,192.51,192.45,4.1569]
[1722241080944,4.1556,192.51,192.42,20.0]
[1722241080945,4.1558,192.5,192.42,20.0]
[1722241081543,20.0,192.55,192.43,4.1573]
[1722241081744,45.17,192.54,192.42,20.0]
[1722241081955,15.5334,192.63,192.46,22.6519]
[1722241082144,15.5334,192.63,192.47,46.97881615]
[1722241082352,5.4395465,192.65,192.5,14.545]
[1722241082952,4.1543,192.57,192.51,4.1556]
[1722241083658,10.381,192.66,192.53,22.4481]
[1722241083851,10.381,192.66,192.54,20.0]
[1722241084052,10.381,192.66,192.55,1.03846316]
[1722241084246,4.1537,192.6,192.55,4.1547]
[1722241084453,4.1539,192.59,192.54,20.0]
[1722241085162,4.1541,192.58,192.54,20.0]
[1722241085458,26.001,192.66,192.53,32.8358]
[1722241085459,4.1538,192.6,192.53,32.8358]
[1722241085863,35.62,192.65,192.53,32.8358]
[1722241086054,10.3826,192.63,192.53,22.4481]
[1722241086242,4.1545,192.56,192.53,22.4481]
[1722241086754,4.1549,192.54,192.53,16.1422]
[1722241087354,4.1553,192.53,192.49,16.0073]
[1722241087961,4.1549,192.55,192.49,16.0073]
[1722241088267,4.1549,192.54,192.49,16.0073]
[1722241088762,20.0,192.59,192.49,16.0073]
[1722241088763,4.1552,192.53,192.49,16.0073]
[1722241091171,4.1549,192.55,192.5,1.03888909]
[1722241091370,10.3818,192.65,192.51,0.17]
[1722241091545,10.3818,192.65,192.53,4.155]
[1722241091751,4.1541,192.58,192.54,1.03855128]
[1722241091984,4.1539,192.59,192.54,1.03855128]
[1722241092491,4.1539,192.59,192.53,14.5424]
[1722241092659,26.0018,192.65,192.53,10.3874]
[1722241092978,10.3833,192.62,192.53,4.1551]
[1722241093147,4.1539,192.59,192.53,4.1551]
[1722241093348,4.1542,192.58,192.52,14.5438]
[1722241093579,4.1539,192.59,192.52,14.5437]
[1722241094771,26.0028,192.63,192.5,24.1557]
[1722241094971,80.96,192.62,192.51,1.0387526]
[1722241095376,4.1546,192.56,192.51,1.0387526]
[1722241095955,4.1548,192.55,192.51,1.0387526]
[1722241097157,4.1545,192.56,192.51,1.0387526]
[1722241097374,4.155,192.54,192.49,16.0073]
[1722241097568,4.1552,192.53,192.49,16.0073]
[1722241099572,26.0061,192.57,192.49,16.0073]
[1722241099783,4.1561,192.49,192.44,26.2447]
[1722241100666,64.52627317,192.56,192.44,26.2447]
[1722241100873,0.17,192.55,192.44,30.4018]
[1722241101887,10.3875,192.54,192.44,15.8524]
[1722241102186,26.0075,192.54,192.44,15.8524]
[1722241102361,4.1567,192.46,192.4,30.464]
[1722241102556,4.1567,192.46,192.4,31.50334504]
[1722241103067,4.1567,192.46,192.4,30.464]
[1722241103474,4.1567,192.46,192.4,31.5033458]
[1722241103976,4.1569,192.45,192.4,27.3455458]
[1722241104585,4.1569,192.45,192.4,26.3062]
[1722241106781,4.1569,192.45,192.4,15.9117]
[1722241106964,4.1573,192.44,192.4,15.9117]
[1722241107790,4.1569,192.45,192.4,15.9117]
[1722241107963,4.1569,192.45,192.4,16.95109105]
[1722241108166,4.1569,192.45,192.4,15.9117]
[1722241108578,4.1571,192.44,192.4,15.9117]
[1722241110066,4.1568,192.46,192.4,15.9117]
[1722241110276,4.1564,192.48,192.41,4.1577]
[1722241110588,4.1567,192.46,192.4,20.0696]
[1722241110782,4.1564,192.47,192.41,4.1577]
[1722241111163,4.1567,192.46,192.4,15.9117]
[1722241111587,4.1567,192.46,192.4,20.0696]
[1722241111986,20.0,192.5,192.4,16.95100259]
[1722241112291,4.1569,192.45,192.4,15.9117]
[1722241112786,4.1569,192.45,192.41,1.03929203]
[1722241113488,4.1571,192.44,192.41,1.03929203]
[1722241113689,4.1571,192.44,192.4,15.9117]
[1722241114074,4.1573,192.43,192.4,15.9117]
[1722241114274,4.1576,192.42,192.4,15.9117]
[1722241118375,4.1577,192.41,192.4,15.9117]
[1722241119181,26.4487,192.45,192.35,10.3972]
[1722241119493,4.1582,192.39,192.34,4.1592]
[1722241119903,42.0787,192.45,192.34,10.3979]
[1722241119904,4.1579,192.41,192.34,10.3979]
[1722241120204,4.1579,192.41,192.35,4.159]
[1722241123303,4.158,192.4,192.35,4.159]
[1722241125121,4.1578,192.41,192.35,4.159]
[1722241127102,4.1581,192.4,192.34,10.3979]
[1722241127603,4.1582,192.39,192.34,14.5571]
[1722241128013,42.0787,192.45,192.31,15.8256]
[1722241128206,4.1587,192.37,192.31,19.9855]
[1722241129117,4.1587,192.37,192.32,4.1596]
[1722241129320,20.0,192.41,192.32,4.1596]
[1722241129321,4.1584,192.38,192.32,4.1596]
[1722241129817,4.1587,192.37,192.32,4.1596]
[1722241131703,4.1584,192.38,192.32,4.1596]
[1722241134004,4.1582,192.39,192.33,4.1595]
[1722241134226,4.1582,192.39,192.34,4.1592]
[1722241134628,4.1582,192.39,192.33,4.1595]
[1722241134825,4.1582,192.39,192.34,4.1592]
[1722241135020,4.1582,192.39,192.31,15.8256]
[1722241135225,4.1582,192.39,192.32,45.0]
[1722241136134,4.1582,192.39,192.33,4.1594]
[1722241137015,4.1579,192.41,192.33,11.43833226]
[1722241137327,4.1579,192.41,192.35,4.1588]
[1722241137533,4.1579,192.41,192.36,4.1588]
[1722241138148,10.3923,192.45,192.36,4.1588]
[1722241138836,20.0,192.44,192.36,4.1588]
[1722241139342,4.1578,192.41,192.35,4.159]
[1722241139535,4.158,192.4,192.35,4.159]
[1722241140149,4.1578,192.41,192.35,4.159]
[1722241140428,4.1578,192.41,192.36,4.1587]
[1722241141154,4.158,192.4,192.35,4.159]
[1722241141439,4.1579,192.41,192.35,4.159]
[1722241141650,4.1576,192.42,192.36,4.1587]
[1722241142522,4.158,192.4,192.34,49.4991]
[1722241142941,4.158,192.4,192.34,49.1591]
[1722241143321,4.158,192.4,192.37,13.0]
[1722241144022,4.1586,192.38,192.35,13.0]
[1722241144221,4.1588,192.37,192.34,13.0]
[1722241144414,4.1588,192.36,192.34,13.0]
[1722241144616,4.1586,192.38,192.34,13.0]
[1722241145318,4.158,192.4,192.37,13.0]
[1722241145728,4.158,192.4,192.35,4.159]
[1722241145729,4.1577,192.42,192.38,13.0]
[1722241146040,20.0,192.43,192.38,13.0]
[1722241146215,4.1578,192.41,192.38,13.0]
[1722241147732,4.1576,192.42,192.38,13.0]
[1722241147923,4.1573,192.43,192.39,13.0]
[1722241148932,4.1573,192.43,192.4,13.0]
[1722241149740,4.1575,192.42,192.38,13.0]
[1722241152318,4.1573,192.43,192.38,13.0]
[1722241152722,13.0,192.45,192.38,13.0]
[1722241152723,4.1576,192.42,192.38,13.0]
[1722241152923,4.1576,192.42,192.37,13.0]
[1722241153125,13.0,192.43,192.36,13.0]
[1722241153338,4.1578,192.41,192.36,13.0]
[1722241154744,4.1578,192.41,192.37,13.0]
[1722241155245,4.1573,192.44,192.39,13.0]
[1722241155444,4.1573,192.43,192.39,13.0]
[1722241155832,13.0,192.44,192.37,13.0]
[1722241156033,4.1575,192.42,192.37,13.0]
[1722241156231,4.1575,192.42,192.38,13.0]
[1722241158248,4.1573,192.44,192.39,13.0]
[1722241158547,4.1573,192.44,192.38,4.1584]
[1722241158548,4.1573,192.44,192.4,13.0]
[1722241159351,4.1569,192.45,192.41,13.0]
[1722241159729,4.1569,192.45,192.42,13.0]
[1722241161856,4.1569,192.45,192.4,13.0]
[1722241162157,17.1567,192.47,192.4,17.1579]
[1722241162364,4.1567,192.46,192.41,13.0]
[1722241162539,4.1567,192.46,192.41,17.1577]
[1722241163056,26.0173,192.55,192.44,13.0]
[1722241163242,4.1563,192.48,192.44,13.0]
[1722241164366,4.1564,192.47,192.43,13.0]
[1722241164660,13.0,192.5,192.42,13.0]
[1722241164960,13.0,192.49,192.42,13.0]
[1722241165140,4.1566,192.47,192.42,13.0]
[1722241165342,4.1564,192.48,192.43,13.0]
[1722241165541,4.1562,192.48,192.43,17.1572]